bitfinex/quotes_ETHUSD_20240713
["timestamp","ask_amount","ask_price","bid_price","bid_amount"]
[1720883854164,4.97870109,3164.8,3163.9,3.057232]
[1720883856000,3.0,3164.8,3163.9,3.057232]
[1720883856171,4.97935972,3164.8,3163.9,3.057232]
[1720883856494,4.97955479,3164.8,3163.9,3.057232]
[1720883856699,4.97955479,3164.8,3163.9,2.4038]
[1720883856898,1.97955479,3164.6,3163.9,2.4038]
[1720883857078,2.04837814,3164.6,3163.9,2.4038]
[1720883858974,2.04837814,3164.6,3163.5,2.3132]
[1720883859298,2.04892931,3164.6,3163.5,2.3132]
[1720883859510,0.20489293,3164.5,3163.5,2.3132]
[1720883859695,2.18507406,3164.5,3163.5,2.3132]
[1720883861373,0.06882335,3164.4,3163.5,2.3132]
[1720883861721,4.64279741,3164.5,3163.5,2.3132]
[1720883861920,1.98018113,3164.4,3163.5,2.3132]
[1720883862216,0.39460238,3164.3,3163.5,2.3132]
[1720883862894,0.46342573,3164.3,3163.5,2.3132]
[1720883863511,0.06882335,3164.2,3163.5,2.3132]
[1720883863689,0.06882335,3164.2,3163.3,7.41]
[1720883863690,1.98115325,3164.1,3163.3,7.41]
[1720883863870,2.25497426,3164.0,3163.3,7.41]
[1720883864070,2.18615091,3164.0,3163.3,7.41]
[1720883864305,0.20499766,3164.0,3163.3,7.41]
[1720883864608,2.18615091,3164.0,3163.3,7.41]
[1720883865875,2.18739353,3164.0,3163.3,7.41]
[1720883866076,0.21873935,3163.9,3163.3,7.41]
[1720883868305,1.98239573,3163.9,3163.3,7.41]
[1720883868489,1.98239573,3164.0,3163.3,7.41]
[1720883868688,1.98355306,3164.0,3163.1,2.3132]
[1720883868902,0.06882335,3164.2,3163.1,2.3132]
[1720883869428,1.98356889,3163.9,3163.2,2.3132]
[1720883869579,0.39460238,3164.3,3163.2,2.3132]
[1720883869580,1.98356889,3164.0,3163.2,2.3132]
[1720883870477,3.0,3164.4,3163.2,2.3132]
[1720883870478,1.98356889,3163.9,3163.2,2.3132]
[1720883870679,1.98356889,3163.9,3163.2,4.52613]
[1720883871333,1.98356889,3163.8,3163.2,4.52613]
[1720883871629,1.98356889,3163.8,3163.3,2.3132]
[1720883871865,1.98356889,3163.9,3163.3,2.3132]
[1720883872040,1.98356889,3163.8,3163.3,2.3132]
[1720883872507,1.98686513,3163.8,3163.3,2.3132]
[1720883872709,1.98686513,3163.8,3163.3,3.1064732]
[1720883873449,1.98686513,3163.7,3163.3,3.1064732]
[1720883873856,1.98686513,3163.8,3163.3,3.1064732]
[1720883874055,1.98686513,3163.7,3163.3,3.1064732]
[1720883874408,1.98686513,3163.6,3163.3,3.1064732]
[1720883874812,1.98686513,3163.7,3163.3,3.1064732]
[1720883875268,1.98686513,3163.6,3163.3,3.1064732]
[1720883875413,1.98686513,3163.6,3163.4,0.53194032]
[1720883875831,1.98900167,3163.6,3163.4,0.53194032]
[1720883876240,1.98901632,3163.6,3163.5,2.4778]
[1720883876438,2.32051905,3163.8,3163.5,2.4778]
[1720883877422,1.99022832,3163.8,3163.5,2.21267]
[1720883877750,1.99022832,3163.8,3163.7,2.4778]
[1720883877935,1.99022832,3163.9,3163.7,4.69038]
[1720883878344,1.99022832,3163.8,3163.7,4.69038]
[1720883878952,1.99032626,3163.8,3163.7,2.4778]
[1720883879850,2.3220473,3163.9,3163.7,2.4778]
[1720883880053,2.3220473,3164.0,3163.7,2.4778]
[1720883881433,0.27429184,3164.3,3163.7,2.4778]
[1720883881633,2.32208615,3164.0,3163.7,2.4778]
[1720883882565,2.32208615,3163.9,3163.7,2.4778]
[1720883883088,2.32208615,3164.0,3163.7,2.4778]
[1720883883261,2.32208615,3163.9,3163.7,2.4778]
[1720883884030,1.99084309,3163.8,3163.7,2.4778]
[1720883884259,2.32208615,3164.0,3163.7,2.4778]
[1720883884466,1.99118255,3163.8,3163.7,2.4778]
[1720883884641,3.28489544,3164.6,3163.7,2.4778]
[1720883884837,2.4188,3164.9,3163.7,2.4778]
[1720883884838,2.32303395,3164.1,3163.7,2.4778]
[1720883885037,1.99117373,3163.8,3163.7,2.4778]
[1720883885240,2.32303395,3163.9,3163.7,2.4778]
[1720883886569,2.32303395,3163.8,3163.1,2.21298]
[1720883886770,1.99234473,3163.5,3163.2,3.0278]
[1720883887199,1.99234473,3163.5,3163.2,2.4778]
[1720883887775,1.99234473,3163.4,3163.2,2.4778]
[1720883888105,0.27440838,3164.0,3163.2,2.4778]
[1720883888242,1.99254208,3163.5,3163.2,2.4778]
[1720883888443,3.28489544,3164.3,3163.2,2.4778]
[1720883888678,1.99272528,3163.4,3163.2,2.4778]
[1720883890169,1.99272528,3163.3,3163.2,2.4778]
[1720883890482,2.32484616,3163.4,3163.2,2.4778]
[1720883891464,2.7468917,3163.5,3162.9,2.4778]
[1720883891677,1.99299198,3163.0,3162.9,2.4778]
[1720883892547,1.99299198,3163.1,3162.9,2.4778]
[1720883892745,1.99299198,3163.0,3162.9,2.4778]
[1720883893276,0.24188,3163.8,3162.9,2.4778]
[1720883893277,1.99299198,3163.1,3162.9,2.946909]
[1720883893460,1.99299198,3163.1,3162.9,2.4778]
[1720883893851,1.99299198,3163.0,3162.9,2.4778]
[1720883894390,1.99252709,3163.0,3162.9,2.4778]
[1720883894589,2.32515731,3163.3,3162.9,3.2768]
[1720883894796,1.9924965,3163.0,3162.9,2.4778]
[1720883894953,1.9924965,3163.0,3162.9,3.2768]
[1720883897898,2.32420531,3163.1,3162.9,0.799]
[1720883898059,2.56354936,3163.0,3162.9,0.799]
[1720883898258,0.06882335,3163.2,3162.9,0.799]
[1720883898259,2.81433951,3163.2,3162.9,0.799]
[1720883898879,2.32393089,3163.0,3162.9,0.799]
[1720883899088,2.32393089,3163.0,3162.7,0.799]
[1720883899396,2.32394527,3163.0,3162.7,0.799]
[1720883899699,0.41726138,3162.9,3162.7,0.799]
[1720883899910,0.34843803,3162.8,3162.7,0.799]
[1720883901181,2.39200645,3162.9,3162.7,0.799]
[1720883901386,0.4173008,3162.8,3162.7,0.799]
[1720883901582,0.41731051,3162.8,3162.7,0.799]
[1720883901782,0.34848716,3162.8,3162.7,0.799]
[1720883902294,0.41731051,3162.8,3162.7,0.799]
[1720883902998,2.740088,3162.8,3162.7,0.799]
[1720883903169,2.740088,3162.8,3162.6,7.41]
[1720883903170,0.62249596,3162.8,3162.6,7.41]
[1720883903380,2.67126465,3162.7,3162.6,7.41]
[1720883904296,2.4163,3163.2,3162.3,3.2221]
[1720883904467,1.99033456,3162.4,3162.3,2.4231]
[1720883904667,2.33891732,3162.4,3162.3,3.2221]
[1720883905079,1.99033456,3162.5,3162.3,3.2221]
[1720883905624,1.99033456,3162.5,3162.3,2.4231]
[1720883905800,2.3389321,3162.4,3162.3,2.4231]
[1720883905978,2.3389321,3162.4,3162.2,0.799]
[1720883906186,1.99033456,3162.5,3162.2,0.799]
[1720883906480,1.99033456,3162.5,3162.4,0.799]
[1720883906679,2.33891756,3162.5,3162.4,0.799]
[1720883907197,2.33891756,3162.5,3162.2,0.799]
[1720883907396,0.34860298,3162.4,3162.0,0.00108]
[1720883907601,2.33754612,3162.3,3162.0,0.00108]
[1720883907798,2.33756385,3162.2,3162.0,0.00108]
[1720883908112,2.33759488,3162.1,3162.0,0.00108]
[1720883908266,1.98883266,3162.1,3162.0,0.00108]
[1720883908472,2.88686601,3162.4,3162.0,0.00108]
[1720883908473,1.98883266,3162.2,3162.0,0.00108]
[1720883909583,1.98883266,3162.3,3162.0,0.00108]
[1720883909787,2.33642989,3162.2,3162.0,0.00108]
[1720883910017,1.98763968,3162.2,3162.0,0.00108]
[1720883910321,1.98763968,3162.3,3162.0,0.00108]
[1720883910489,1.98763968,3162.2,3162.0,0.00108]
[1720883910691,2.05646303,3162.2,3162.0,0.00108]
[1720883910921,1.98763968,3162.2,3162.0,0.00108]
[1720883911123,1.98704708,3162.3,3162.0,0.00108]
[1720883912432,0.49773789,3162.4,3162.0,0.00108]
[1720883912433,2.55360832,3162.4,3162.0,0.00108]
[1720883912595,0.27943824,3162.3,3162.0,0.00108]
[1720883913332,0.06882335,3162.2,3162.0,0.00108]
[1720883913740,1.98704708,3162.4,3162.0,0.80008]
[1720883914440,2.05427991,3162.4,3162.0,0.80008]
[1720883914846,2.05402739,3162.4,3162.0,0.80008]
[1720883915050,1.98520404,3162.4,3162.0,0.80008]
[1720883915214,1.98520404,3162.6,3162.3,2.397]
[1720883915727,1.98520404,3162.6,3162.4,0.799]
[1720883915931,1.98520404,3162.7,3162.4,0.799]
[1720883916242,1.98520404,3162.7,3162.6,0.799]
[1720883917261,1.98520404,3162.7,3162.4,0.799]
[1720883917552,1.98446807,3162.7,3162.4,0.799]
[1720883917848,1.98446807,3162.8,3162.7,2.397]
[1720883918061,1.98446807,3163.0,3162.7,3.196]
[1720883918356,2.3725,3163.5,3162.7,3.196]
[1720883918357,1.98446807,3163.2,3162.7,3.196]
[1720883918539,1.98446807,3163.1,3162.7,3.196]
[1720883918741,1.98446807,3163.0,3162.7,3.196]
[1720883918903,1.98446807,3162.9,3162.7,3.196]
[1720883919103,1.98446807,3163.0,3162.7,3.196]
[1720883919801,1.98446807,3163.0,3162.5,0.799]
[1720883920050,1.98446807,3162.9,3162.5,0.799]
[1720883920221,0.06882335,3162.8,3162.5,0.799]
[1720883920661,2.05329142,3162.8,3162.5,0.799]
[1720883920954,0.06882335,3162.8,3162.5,0.799]
[1720883921167,2.05345249,3162.8,3162.5,0.799]
[1720883921310,0.06882335,3162.7,3162.0,2.39808]
[1720883921509,2.05345249,3162.7,3162.0,2.39808]
[1720883921710,1.98462914,3162.6,3162.0,2.39808]
[1720883921914,2.05345249,3162.6,3162.1,0.799]
[1720883922119,0.20534525,3162.5,3162.1,0.799]
[1720883923194,0.2741686,3162.5,3162.1,0.799]
[1720883923376,0.20534525,3162.5,3162.1,0.799]
[1720883924455,1.98479538,3162.6,3162.1,0.799]
[1720883925378,1.98479538,3162.5,3162.1,0.799]
[1720883925675,1.98479538,3162.6,3162.1,0.799]
[1720883927547,1.98526171,3162.6,3162.1,0.799]
[1720883927928,1.98545968,3162.6,3162.1,0.799]
[1720883928128,1.98545968,3162.5,3162.1,0.799]
[1720883929257,1.98545968,3162.5,3162.0,0.00108]
[1720883929451,1.98545968,3162.4,3162.0,0.80008]
[1720883930246,2.05428303,3162.4,3162.0,0.80008]
[1720883930591,1.98545968,3162.3,3162.0,0.80008]
[1720883930770,2.19198033,3162.3,3162.0,0.80008]
[1720883930944,0.06882335,3162.2,3162.0,0.80008]
[1720883932174,2.19198033,3162.3,3162.0,0.80008]
[1720883932345,1.98655203,3162.3,3162.0,0.80008]
[1720883933478,1.98655203,3162.2,3162.0,0.80008]
[1720883933864,1.98655203,3162.2,3162.0,0.00108]
[1720883934066,1.9879536,3162.2,3162.0,0.00108]
[1720883934987,0.06882335,3162.1,3162.0,0.00108]
[1720883935188,0.62332825,3162.1,3162.0,0.00108]
[1720883937100,2.94260745,3162.1,3162.0,0.00108]
[1720883937400,0.62338569,3162.1,3162.0,0.00108]
[1720883937595,2.67006181,3162.1,3162.0,0.00108]
[1720883937799,0.34884075,3162.1,3162.0,0.00108]
[1720883937998,2.67007758,3162.1,3162.0,0.00108]
[1720883940371,0.34889113,3162.1,3162.0,0.00108]
[1720883940574,0.06882335,3162.3,3162.0,0.00108]
[1720883940834,3.0922205,3162.2,3162.0,0.00108]
[1720883941129,0.41771599,3162.1,3162.0,0.00108]
[1720883941492,3.0922205,3162.1,3162.0,0.00108]
[1720883941691,0.34889264,3162.1,3162.0,0.00108]
[1720883942201,3.0922205,3162.2,3162.0,0.00108]
[1720883942401,3.40144255,3162.1,3162.0,0.00108]
[1720883942798,0.65811469,3162.1,3162.0,0.00108]
[1720883943214,0.30922205,3162.1,3162.0,0.00108]
[1720883943409,2.74422527,3162.2,3162.0,0.00108]
[1720883943604,0.34891722,3162.1,3162.0,0.00108]
[1720883945244,0.34891722,3162.1,3162.0,2.27298]
[1720883945535,0.34891722,3162.1,3162.0,0.00108]
[1720883945856,2.67277316,3162.1,3162.0,0.80008]
[1720883945996,0.34891722,3162.1,3162.0,0.80008]
[1720883946397,3.50397593,3162.6,3162.0,0.00108]
[1720883946627,2.74534118,3162.3,3162.0,0.00108]
[1720883946826,0.34882481,3162.2,3162.0,0.00108]
[1720883947122,0.34882481,3162.1,3162.0,0.00108]
[1720883949403,0.34888162,3162.1,3162.0,0.00108]
[1720883949608,3.63529303,3162.5,3162.0,0.00108]
[1720883949609,3.28489544,3162.4,3162.0,0.00108]
[1720883949800,2.74598671,3162.2,3162.0,0.00108]
[1720883950000,0.34888264,3162.3,3162.0,0.00108]
[1720883950001,3.09486935,3162.1,3162.0,0.00108]
[1720883951027,3.1636927,3162.1,3162.0,0.00108]
[1720883951736,3.09486935,3162.1,3162.0,0.00108]
[1720883951931,3.41123862,3162.1,3162.0,0.00108]
[1720883953129,0.66524815,3162.1,3162.0,0.00108]
[1720883953297,0.34887888,3162.1,3162.0,0.00108]
[1720883954821,2.67327804,3162.1,3162.0,0.00108]
[1720883955007,0.34887888,3162.1,3162.0,0.00108]
[1720883956429,0.3487635,3162.1,3162.0,0.00108]
[1720883956908,0.34876359,3162.1,3162.0,0.00108]
[1720883957115,2.67322777,3162.1,3162.0,0.00108]
[1720883957321,0.34876359,3162.1,3162.0,0.00108]
[1720883957636,1.99213357,3162.2,3162.1,2.4827]
[1720883957938,1.99213357,3162.5,3162.3,2.4827]
[1720883958231,1.99213357,3162.5,3162.2,4.42724]
[1720883958232,1.99213357,3162.6,3162.5,2.4827]
[1720883958438,0.34837116,3162.6,3162.5,3.2817]
[1720883958607,2.34050473,3162.6,3162.5,3.2817]
[1720883958807,0.34837116,3162.6,3162.5,3.2817]
[1720883958999,2.33985612,3162.6,3162.5,3.2817]
[1720883959230,0.34837116,3162.6,3162.5,3.2817]
[1720883959534,3.28489544,3163.4,3162.5,3.2817]
[1720883959723,2.32308598,3162.8,3162.5,3.2817]
[1720883959924,0.3484496,3162.7,3162.5,2.4827]
[1720883960935,1.99103801,3162.6,3162.5,2.4827]
[1720883961135,2.33929672,3162.6,3162.5,2.4827]
[1720883961837,2.33922358,3162.6,3162.5,2.4827]
[1720883962232,0.3484496,3162.6,3162.5,2.4827]
[1720883962435,0.3484496,3162.7,3162.5,3.55187]
[1720883962738,1.99062047,3162.6,3162.5,3.55187]
[1720883962936,1.990574,3162.6,3162.5,3.2817]
[1720883963134,2.33902065,3162.6,3162.5,3.2817]
[1720883963542,0.34844665,3162.6,3162.5,3.2817]
[1720883963915,2.33902065,3162.6,3162.5,3.2817]
[1720883964745,1.990574,3162.9,3162.5,3.01239]
[1720883964940,2.32233634,3163.1,3162.8,0.799]
[1720883965239,1.99029133,3162.9,3162.6,2.4827]
[1720883965404,1.99029133,3162.9,3162.8,0.799]
[1720883965608,2.3386253,3162.9,3162.8,0.799]
[1720883966338,2.33797392,3162.9,3162.8,0.799]
[1720883966708,2.33801055,3162.9,3162.8,0.799]
[1720883968211,1.98967491,3163.0,3162.8,0.799]
[1720883968407,1.98967491,3163.0,3162.9,0.799]
[1720883968626,2.33800742,3163.0,3162.9,0.799]
[1720883969545,2.33701237,3163.0,3162.9,0.799]
[1720883969952,0.34833295,3163.0,3162.9,0.799]
[1720883973652,0.34833295,3163.0,3162.9,3.2047]
[1720883975447,6.21061262,3163.9,3162.9,3.2047]
[1720883975636,0.62106126,3163.8,3162.9,3.2047]
[1720883976429,2.312,3163.7,3162.9,2.4057]
[1720883979959,0.799,3163.3,3162.8,7.41]
[1720883980158,0.06882335,3163.2,3162.8,7.41]
[1720883980347,0.86782335,3163.5,3162.8,7.41]
[1720883980542,0.86782335,3163.5,3162.5,2.4057]
[1720883981434,0.799,3163.3,3162.3,7.41]
[1720883981642,0.37992335,3163.2,3162.3,7.41]
[1720883982023,0.37992335,3163.2,3162.7,0.799]
[1720883983463,2.31853566,3163.0,3162.7,0.799]
[1720883985466,0.37992335,3163.2,3162.7,0.799]
[1720883985783,0.06882335,3163.0,3162.4,0.799]
[1720883985934,0.06882335,3163.0,3162.6,0.799]
[1720883986335,0.06882335,3162.9,3162.6,0.799]
[1720883987369,0.06882335,3163.1,3162.6,0.799]
[1720883987841,0.37992335,3163.2,3162.6,0.799]
[1720883988032,0.37992335,3163.2,3162.3,7.41]
[1720883988238,0.37992335,3163.2,3162.6,0.799]
[1720883988428,2.31959575,3162.8,3162.6,0.799]
[1720883989462,2.55843766,3162.8,3162.6,0.799]
[1720883989671,2.55871098,3162.8,3162.6,0.799]
[1720883990058,2.558687,3162.8,3162.6,0.799]
[1720883990553,2.38866844,3162.7,3162.6,0.799]
[1720883990885,2.558687,3162.8,3162.6,0.799]
[1720883991169,2.31984509,3162.7,3162.6,0.799]
[1720883991339,2.558687,3162.8,3162.6,0.799]
[1720883991528,2.31984509,3162.7,3162.6,0.799]
[1720883992472,2.31984509,3162.9,3162.7,2.344]
[1720883992768,2.32023219,3163.0,3162.8,0.799]
[1720883993063,2.32023219,3163.0,3162.9,0.799]
[1720883993467,2.32023219,3163.1,3162.9,0.799]
[1720883993668,2.32023219,3163.1,3163.0,0.799]
[1720883993837,2.32030474,3163.1,3163.0,0.799]
[1720883994751,2.32030474,3163.3,3163.0,3.143]
[1720883995070,1.98887351,3163.2,3163.0,2.344]
[1720883995273,2.32030474,3163.4,3163.1,1.0334]
[1720883995570,0.25794581,3163.3,3163.1,0.2344]
[1720883995767,2.32030474,3163.4,3163.1,0.2344]
[1720883995768,0.25794581,3163.2,3163.1,0.2344]
[1720883995939,0.25797304,3163.3,3163.2,0.799]
[1720883996333,2.24703967,3163.3,3163.2,0.799]
[1720883996537,2.24703967,3163.3,3163.2,1.1133]
[1720883997072,1.98906663,3163.4,3163.3,2.344]
[1720883997248,1.98906663,3163.6,3163.4,2.344]
[1720883997583,3.28489544,3164.5,3163.4,2.344]
[1720883997584,1.98883118,3163.7,3163.5,0.799]
[1720883997881,1.98883118,3163.7,3163.6,0.799]
[1720883998078,2.24654207,3163.7,3163.6,0.799]
[1720883998547,0.25771089,3163.7,3163.6,0.799]
[1720883998874,2.24636421,3163.7,3163.6,0.799]
[1720884000382,2.24636421,3163.7,3163.6,1.1133]
[1720884000755,0.25770965,3163.7,3163.6,1.1133]
[1720884001062,3.28489544,3164.5,3163.6,1.1133]
[1720884001251,2.32081377,3163.9,3163.4,2.344]
[1720884001448,2.32081377,3163.9,3163.8,0.799]
[1720884001657,2.57857529,3163.9,3163.8,0.799]
[1720884001955,0.25776152,3163.9,3163.8,0.799]
[1720884003348,0.25768114,3163.9,3163.8,0.799]
[1720884004003,0.25770159,3163.9,3163.8,0.799]
[1720884004164,2.24573381,3163.9,3163.8,3.143]
[1720884004375,1.98803222,3164.0,3163.8,3.4573]
[1720884004708,1.98803222,3164.0,3163.9,0.799]
[1720884004853,2.24565066,3164.0,3163.9,0.799]
[1720884006256,1.98803222,3164.0,3163.9,0.799]
[1720884006685,1.98695912,3164.1,3163.9,0.799]
[1720884006887,1.98694624,3164.1,3164.0,0.799]
[1720884007091,2.24456816,3164.1,3164.0,0.799]
[1720884008295,2.2445701,3164.1,3164.0,0.799]
[1720884009198,1.98694624,3164.1,3164.0,0.799]
[1720884009402,1.98694624,3164.2,3164.0,0.799]
[1720884009573,1.98694624,3164.2,3164.1,0.799]
[1720884009769,0.25763362,3164.2,3164.1,0.799]
[1720884009983,3.0,3164.8,3164.1,0.799]
[1720884010164,1.98554235,3164.2,3163.8,2.344]
[1720884010364,1.98554235,3164.2,3164.1,0.799]
[1720884010564,2.24317125,3164.2,3164.1,0.799]
[1720884011694,1.98554235,3164.2,3164.1,0.799]
[1720884011920,2.24316837,3164.2,3164.1,0.799]
[1720884012096,2.24318658,3164.2,3164.1,0.799]
[1720884012261,2.24318658,3164.2,3163.4,7.41]
[1720884012262,0.55078442,3164.2,3163.6,0.799]
[1720884012627,1.98513302,3163.9,3163.6,0.799]
[1720884012969,2.60994619,3164.2,3163.4,7.41]
[1720884012970,2.05395637,3163.8,3163.4,7.41]
[1720884013171,2.05395637,3163.8,3163.6,0.799]
[1720884013372,1.98520942,3163.8,3163.6,0.799]
[1720884013882,1.98517502,3163.9,3163.6,0.799]
[1720884014090,1.98517502,3163.9,3163.8,0.799]
[1720884014307,1.98517502,3163.9,3163.8,3.1503]
[1720884015370,2.24295942,3163.9,3163.8,0.799]
[1720884015561,1.98497819,3163.9,3163.8,0.799]
[1720884015769,2.24276705,3163.9,3163.8,0.799]
[1720884016010,2.24277659,3163.9,3163.8,0.799]
[1720884016170,0.2577984,3163.9,3163.8,0.799]
[1720884016497,2.31603752,3164.1,3163.8,0.799]
[1720884016708,0.49631231,3164.0,3163.8,0.799]
[1720884016867,0.25782622,3163.9,3163.8,0.799]
[1720884017527,2.24300387,3163.9,3163.8,0.799]
[1720884017726,1.98517765,3163.9,3163.8,3.1503]
[1720884018170,2.24294356,3163.9,3163.8,3.1503]
[1720884019208,0.4821058,3163.9,3163.6,0.799]
[1720884019367,1.98536107,3163.8,3163.3,2.3513]
[1720884019570,1.98536107,3163.8,3163.7,0.799]
[1720884019801,2.3578,3164.2,3163.7,0.799]
[1720884019991,1.98537155,3163.8,3163.7,0.799]
[1720884020506,2.31626681,3164.0,3163.7,0.799]
[1720884020808,1.98552011,3163.8,3163.7,0.799]
[1720884022005,0.47428902,3164.0,3163.7,0.799]
[1720884022205,2.79055583,3164.0,3163.7,0.799]
[1720884023305,2.7908858,3164.0,3163.7,0.799]
[1720884023699,1.98577427,3163.8,3163.7,0.799]
[1720884025208,2.7908858,3164.0,3163.7,0.799]
[1720884025706,1.98576752,3163.8,3163.7,0.799]
[1720884026321,2.31659678,3164.0,3163.7,0.799]
[1720884026479,0.06882335,3163.9,3163.7,0.799]
[1720884026810,5.3578,3164.6,3163.8,2.3513]
[1720884027015,1.98562659,3164.0,3163.9,0.799]
[1720884028215,1.98562659,3164.1,3163.9,0.799]
[1720884028518,1.98562659,3164.1,3164.0,0.799]
[1720884028937,2.31656436,3164.3,3164.0,0.799]
[1720884029142,2.31656436,3164.3,3164.2,0.799]
[1720884029695,5.3578,3164.6,3164.2,0.799]
[1720884029896,2.31679173,3164.3,3164.2,0.799]
[1720884033028,3.0,3164.6,3164.2,0.799]
[1720884033231,2.73787279,3164.5,3164.2,0.799]
[1720884033537,2.73787279,3164.5,3164.4,0.799]
[1720884033735,5.73787279,3164.5,3164.4,0.799]
[1720884035102,2.73787279,3164.5,3164.4,0.799]
[1720884035344,2.31940814,3164.5,3164.4,1.12068]
[1720884035639,2.31940814,3164.5,3164.4,0.799]
[1720884036437,5.71909544,3165.1,3164.4,0.799]
[1720884036639,2.32000482,3164.5,3164.3,2.4178]
[1720884036823,2.32000482,3164.5,3164.4,0.799]
[1720884037137,2.74052767,3164.7,3164.4,0.799]
[1720884037444,2.74052767,3164.8,3164.7,0.799]
[1720884037940,3.28489544,3165.0,3164.7,0.799]
[1720884038144,3.0,3164.9,3164.7,0.799]
[1720884038516,6.28489544,3164.9,3164.7,0.799]
[1720884040519,3.28489544,3164.8,3164.7,0.799]
[1720884042074,3.0,3164.9,3164.7,0.799]
[1720884042228,0.87190954,3165.0,3164.7,0.799]
[1720884042229,3.87190954,3165.0,3164.7,0.799]
[1720884042430,0.63061095,3164.9,3164.7,0.799]
[1720884042759,3.29410542,3164.8,3164.7,0.799]
[1720884044043,3.29413366,3164.8,3164.7,0.799]
[1720884044632,0.63061095,3164.9,3164.7,0.799]
[1720884044966,3.29399853,3164.8,3164.7,0.799]
[1720884047045,0.63061095,3164.9,3164.7,0.799]
[1720884047245,3.29373138,3164.8,3164.7,0.799]
[1720884050488,3.98616561,3164.8,3164.7,0.799]
[1720884051056,3.29373138,3164.8,3164.7,0.799]
[1720884062801,3.29373138,3164.8,3164.7,3.2593]
[1720884063097,3.29373138,3164.9,3164.7,3.2593]
[1720884063304,3.29373138,3164.8,3164.7,2.4603]
[1720884063499,3.29373138,3164.8,3164.7,3.2593]
[1720884063884,3.29373138,3164.9,3164.7,3.2593]
[1720884064086,3.29373138,3164.9,3164.8,0.799]
[1720884064394,6.29373138,3164.9,3164.8,0.799]
[1720884066207,3.0,3164.9,3164.8,0.799]
[1720884066417,0.33047895,3165.3,3164.8,0.799]
[1720884066619,0.33304789,3165.2,3164.8,0.799]
[1720884080244,0.25752437,3165.1,3164.8,0.799]
[1720884080430,0.25752437,3165.0,3164.8,0.799]
[1720884080634,0.25752437,3164.9,3164.8,0.799]
[1720884081215,0.25752437,3164.9,3164.8,3.2645]
[1720884083453,0.33304789,3165.2,3164.8,3.2645]
[1720884083612,0.2574901,3165.1,3164.8,3.2645]
[1720884083808,0.2574901,3165.0,3164.8,3.2645]
[1720884084013,0.2574901,3164.9,3164.8,3.2645]
[1720884086852,0.25752028,3164.9,3164.8,3.2645]
[1720884087217,0.25752459,3164.9,3164.8,3.2645]
[1720884090058,3.0,3165.1,3164.8,3.2645]
[1720884090351,0.25751453,3165.0,3164.8,3.2645]
[1720884090543,0.25751453,3164.9,3164.8,3.2645]
[1720884093459,0.33304789,3165.2,3164.8,3.2645]
[1720884093667,0.25753358,3165.1,3164.8,2.4655]
[1720884093851,0.25753358,3165.0,3164.8,2.4655]
[1720884094046,0.25753358,3164.9,3164.8,2.4655]
[1720884096836,0.25754566,3164.9,3164.8,2.4655]
[1720884097443,0.25753907,3164.9,3163.9,7.41]
[1720884097648,0.06882335,3164.8,3164.4,3.2125]
[1720884097843,0.06882335,3164.8,3164.2,0.799]
[1720884098064,0.32636242,3164.7,3164.2,0.799]
[1720884098270,0.25753907,3164.6,3164.2,0.799]
[1720884098576,0.25753907,3164.5,3164.2,0.799]
[1720884098775,0.25753907,3164.4,3164.2,0.799]
[1720884098936,0.25753907,3164.3,3164.2,0.799]
[1720884100269,0.25771696,3164.3,3164.2,0.799]
[1720884102175,3.55569696,3164.3,3164.2,0.799]
[1720884103580,3.29798,3164.3,3164.2,0.799]
[1720884103788,3.5557029,3164.3,3164.2,0.799]
[1720884103983,3.5557029,3164.3,3163.4,7.41]
[1720884103984,3.91127319,3164.3,3163.5,2.4135]
[1720884104295,3.62433357,3164.2,3163.9,0.799]
[1720884104510,0.2577229,3164.1,3163.9,0.799]
[1720884104812,3.55551022,3164.1,3163.9,0.799]
[1720884104950,0.2577229,3164.0,3163.9,0.799]
[1720884105387,0.2577229,3164.1,3163.9,0.799]
[1720884106250,0.2577229,3164.1,3164.0,2.4135]
[1720884106880,0.25774485,3164.1,3164.0,2.4135]
[1720884107289,0.25774485,3164.1,3164.0,2.73475]
[1720884110307,3.00413851,3164.1,3164.0,2.73475]
[1720884110658,3.0041382,3164.1,3164.0,2.73475]
[1720884111408,3.0041382,3164.1,3164.0,2.4135]
[1720884111758,0.25767491,3164.1,3164.0,2.4135]
[1720884112195,3.00410332,3164.1,3164.0,2.4135]
[1720884113490,3.00402974,3164.1,3164.0,2.4135]
[1720884115297,0.25767647,3164.1,3164.0,2.4711061]
[1720884115496,2.32455235,3164.3,3164.2,2.4337]
[1720884115697,2.32455235,3164.8,3164.5,2.4337]
[1720884115899,2.32455235,3164.9,3164.7,0.799]
[1720884116064,2.32455235,3165.0,3164.8,0.799]
[1720884116276,2.32455235,3165.0,3164.9,3.2327]
[1720884116509,2.32455235,3165.0,3164.9,3.55597]
[1720884116804,2.32299981,3165.0,3164.9,3.55597]
[1720884116993,2.32299981,3165.1,3164.9,3.55597]
[1720884117194,2.32299981,3165.1,3165.0,0.799]
[1720884119198,2.32299981,3165.1,3164.9,2.4337]
[1720884119199,2.32099119,3165.1,3164.9,2.4337]
[1720884119609,2.32099119,3165.0,3164.9,2.4337]
[1720884119993,3.36661067,3165.6,3164.9,2.4337]
[1720884120317,2.32102302,3165.0,3164.9,2.4337]
[1720884120984,2.74170844,3165.3,3164.6,7.41]
[1720884120985,3.06882335,3165.2,3164.6,7.41]
[1720884121300,2.74203334,3164.8,3164.6,7.41]
[1720884121898,2.74203334,3164.8,3164.4,0.799]
[1720884122086,2.74203334,3164.7,3164.3,2.4337]
[1720884122286,2.3214327,3164.4,3164.3,2.4337]
[1720884122484,2.3214327,3164.4,3164.3,3.2327]
[1720884122685,2.32146762,3164.4,3164.3,3.2327]
[1720884123312,2.32146772,3164.4,3164.3,3.2327]